[Event "Turkish Championship 2019"]
[Site "Antalya-Kemer"]
[Date "2019.11.23"]
[Round "1.1"]
[White "Cansun, Can Alp"]
[Black "Yilmazyerli, Mert"]
[Result "0-1"]
[ECO "B84"]
[WhiteElo "2203"]
[BlackElo "2396"]
[Annotator "NA"]
[PlyCount "82"]
[EventDate "2019.11.23"]
[EventType "tourn"]
[EventCountry "TUR"]
[SourceTitle "playchess.com"]
[Source "ChessBase"]
[SourceQuality "1"]
[TimeControl "40/5400+30:1800+30"]

1. e4 {[%emt 0:00:30]} c5 {[%emt 0:00:30]} 2. Nf3 {[%emt 0:00:30]} d6 {[%emt 0:00:00]} 3. d4 {[%emt 0:00:00]} cxd4 {[%emt 0:00:00]} 4. Nxd4 {[%emt 0:00:00]} Nf6 {[%emt 0:00:30]} 5. Nc3 {[%emt 0:00:00]} a6 {[%emt 0:00:00]} 6. Be3 {[%emt 0:00:00]} e6 {[%emt 0:00:00]} 7. Be2 {[%emt 0:04:30]} Qc7 {[%emt 0:00:00]} 8. f4 {[%emt 0:03:30]} b5 {[%emt 0:01:00]} 9. a3 {[%emt 0:02:30]} Bb7 {[%emt 0:00:30]} 10. Bf3 {[%emt 0:00:00]} Nbd7 {[%emt 0:00:00]} 11. Qe2 {[%emt 0:08:00]} e5 {[%emt 0:05:00]} 12. Nb3 {[%emt 0:03:30]} Rc8 {[%emt 0:01:30]} 13. O-O {[%emt 0:03:30]} Be7 {[%emt 0:00:30]} 14. Rad1 {[%emt 0:00:30]} O-O {[%emt 0:00:30]} 15. Qf2 {[%emt 0:02:30]} Bc6 {[%emt 0:03:30]} 16. Qg3 {[%emt 0:05:30]} Kh8 {[%emt 0:01:30]} 17. fxe5 {[%emt 0:04:30]} dxe5 {[%emt 0:02:30]} 18. Kh1 {[%emt 0:18:30]} a5 {[%emt 0:02:30]} 19. Rf2 {[%emt 0:06:30]} b4 {[%emt 0:02:30]} 20. axb4 {[%emt 0:00:30]} axb4 {[%emt 0:00:30]} 21. Nd5 {[%emt 0:00:30]} Bxd5 {[%emt 0:00:30]} 22. exd5 {[%emt 0:00:00]} Bd6 {[%emt 0:00:30]} 23. Qh3 {[%emt 0:04:00]} e4 {[%emt 0:05:30]} 24. Bg4 {[%emt 0:01:30]} Nxg4 {[%emt 0:02:30]} 25. Qxg4 {[%emt 0:00:00]} Bxh2 {[%emt 0:12:30]} 26. Qxe4 {[%emt 0:19:17]} Rce8 {[%emt 0:04:30]} 27. Qf3 {[%emt 0:00:52]} Nf6 {[%emt 0:01:30]} 28. Bf4 {[%emt 0:06:44]} Bxf4 {[%emt 0:02:30]} 29. Qxf4 {[%emt 0:00:02]} Qd8 {[%emt 0:02:30]} 30. Nc5 {[%emt 0:05:48]} Nh5 {[%emt 0:23:30]} 31. Qf3 {[%emt 0:01:14]} Re5 {[%emt 0:09:35]} 32. Kg1 {[%emt 0:00:29]} Rfe8 {[%emt 0:02:36]} 33. Nd3 {[%emt 0:00:30]} Rxd5 {[%emt 0:00:52]} 34. Qxf7 {[%emt 0:00:18]} Nf6 {[%emt 0:05:40]} 35. Qb7 {[%emt 0:00:41]} Ng4 {[%emt 0:00:54]} 36. Rf4 {[%emt 0:00:32]} Qh4 {[%emt 0:00:14]} 37. Rxg4 {[%emt 0:00:50]} Qxg4 {[%emt 0:00:05]} 38. Rf1 {[%emt 0:00:11]} Qd4+ {[%emt 0:00:30]} 39. Rf2 {[%emt 0:00:11]} Rf5 {[%emt 0:00:18]} 40. Qxb4 {[%emt 0:00:44]} Qxb4 {[%emt 0:00:30]} 41. Nxb4 {[%emt 0:30:30]} Re1+ {[%emt 0:00:16]} 0-1

[Event "Turkish Championship 2019"]
[Site "Antalya-Kemer"]
[Date "2019.11.23"]
[Round "1.2"]
[White "Sevgi, Volkan"]
[Black "Haznedaroglu, Kivanc"]
[Result "1/2-1/2"]
[ECO "A34"]
[WhiteElo "2325"]
[BlackElo "2461"]
[Annotator "ChessBase"]
[PlyCount "127"]
[EventDate "2019.11.23"]
[EventType "tourn"]
[EventCountry "TUR"]
[SourceTitle "playchess.com"]
[Source "ChessBase"]
[SourceQuality "1"]
[TimeControl "40/5400+30:1800+30"]

1. Nf3 {[%emt 0:00:30]} Nf6 {[%emt 0:00:30]} 2. g3 {[%emt 0:00:30]} c5 {[%emt 0:00:00]} 3. Bg2 {[%emt 0:00:00]} Nc6 {[%emt 0:00:00]} 4. O-O {[%emt 0:00:00]} e5 {[%emt 0:00:30]} 5. d3 {[%emt 0:00:30]} d6 {[%emt 0:00:00]} 6. c4 {[%emt 0:02:30]} Be7 {[%emt 0:00:00]} 7. Nc3 {[%emt 0:00:00]} O-O {[%emt 0:01:30]} 8. a3 {[%emt 0:00:00]} Rb8 {[%emt 0:12:30]} 9. Rb1 {[%emt 0:02:30]} a6 {[%emt 0:00:30]} 10. Nd2 {[%emt 0:03:30]} Be6 {[%emt 0:11:30]} 11. Nd5 {[%emt 0:11:30]} Qd7 {[%emt 0:02:30]} 12. Nb6 {[%emt 0:07:30]} Qe8 {[%emt 0:00:30]} 13. b4 {[%emt 0:11:30]} cxb4 {[%emt 0:04:30]} 14. axb4 {[%emt 0:00:30]} Bd8 {[%emt 0:00:30]} 15. Nd5 {[%emt 0:00:30]} b5 {[%emt 0:02:30]} 16. Nxf6+ {[%emt 0:04:30]} Bxf6 {[%emt 0:00:30]} 17. Ne4 {[%emt 0:00:30]} Be7 {[%emt 0:00:30]} 18. cxb5 {[%emt 0:00:30]} axb5 {[%emt 0:00:30]} 19. Nc3 {[%emt 0:00:30]} Qd7 {[%emt 0:05:30]} 20. Nd5 {[%emt 0:04:30]} Rfc8 {[%emt 0:01:30]} 21. Be3 {[%emt 0:02:30]} Bd8 {[%emt 0:03:30]} 22. Qd2 {[%emt 0:22:30]} Bh3 {[%emt 0:04:30]} 23. Bxh3 {[%emt 0:02:30]} Qxh3 {[%emt 0:02:30]} 24. d4 {[%emt 0:00:30]} Qf5 {[%emt 0:09:30]} 25. dxe5 {[%emt 0:01:30]} Nxe5 {[%emt 0:00:30]} 26. Bf4 {[%emt 0:03:11]} Nc4 {[%emt 0:10:30]} 27. Qd3 {[%emt 0:01:49]} Qe6 {[%emt 0:01:30]} 28. h4 {[%emt 0:02:10]} Bf6 {[%emt 0:01:30]} 29. Nxf6+ {[%emt 0:05:20]} Qxf6 {[%emt 0:00:30]} 30. Ra1 {[%emt 0:00:09]} Ne5 {[%emt 0:05:34]} 31. Qd5 {[%emt 0:03:20]} Nc4 {[%emt 0:08:28]} 32. Ra7 {[%emt 0:00:52]} Qe6 {[%emt 0:00:38]} 33. Rd1 {[%emt 0:00:27]} Re8 {[%emt 0:01:51]} 34. e3 {[%emt 0:01:57]} h6 {[%emt 0:02:18]} 35. h5 {[%emt 0:01:01]} Qf6 {[%emt 0:02:38]} 36. Rd4 {[%emt 0:00:19]} Re6 {[%emt 0:00:51]} 37. Kg2 {[%emt 0:02:24]} Qd8 {[%emt 0:01:36]} 38. Qc6 {[%emt 0:00:20]} Rb6 {[%emt 0:03:06]} 39. Ra8 {[%emt 0:02:46]} Rxc6 {[%emt 0:01:25]} 40. Rxd8+ {[%emt 0:00:30]} Kh7 {[%emt 0:00:00]} 41. Rb8 {[%emt 0:03:25]} Nb6 {[%emt 0:05:35]} 42. Rb7 {[%emt 0:01:30]} g5 {[%emt 0:02:30]} 43. hxg6+ {[%emt 0:01:30]} Kxg6 {[%emt 0:00:00]} 44. e4 {[%emt 0:04:30]} Na4 {[%emt 0:05:00]} 45. Rxb5 {[%emt 0:14:47]} Nc3 {[%emt 0:00:30]} 46. Rbd5 {[%emt 0:00:14]} Ne2 {[%emt 0:00:30]} 47. b5 {[%emt 0:00:05]} Nxd4 {[%emt 0:00:30]} 48. bxc6 {[%emt 0:00:03]} Nxc6 {[%emt 0:00:30]} 49. Rxd6 {[%emt 0:00:30]} Rxd6 {[%emt 0:00:30]} 50. Bxd6 {[%emt 0:00:30]} f5 {[%emt 0:00:00]} 51. Kf3 {[%emt 0:00:00]} Nd4+ {[%emt 0:00:00]} 52. Kf4 {[%emt 0:00:26]} fxe4 {[%emt 0:00:30]} 53. Kxe4 {[%emt 0:00:00]} Nf5 {[%emt 0:00:30]} 54. Bc7 {[%emt 0:00:13]} h5 {[%emt 0:00:00]} 55. Be5 {[%emt 0:00:08]} Ne7 {[%emt 0:00:00]} 56. Bd6 {[%emt 0:00:31]} Nf5 {[%emt 0:00:00]} 57. Bf8 {[%emt 0:00:25]} Kf6 {[%emt 0:00:00]} 58. Bc5 {[%emt 0:00:47]} Kg5 {[%emt 0:01:30]} 59. Be3+ {[%emt 0:00:18]} Kf6 {[%emt 0:01:30]} 60. Bf4 {[%emt 0:00:12]} Kg6 {[%emt 0:00:30]} 61. f3 {[%emt 0:00:11]} Ng7 {[%emt 0:00:30]} 62. Ke5 {[%emt 0:00:45]} Nf5 {[%emt 0:00:30]} 63. g4 {[%emt 0:00:00]} hxg4 {[%emt 0:00:30]} 64. Ke4 {[%emt 0:00:07]} 1/2-1/2

[Event "Turkish Championship 2019"]
[Site "Antalya-Kemer"]
[Date "2019.11.23"]
[Round "1.3"]
[White "Yilmaz, Mustafa"]
[Black "Ozen, Deniz"]
[Result "1/2-1/2"]
[ECO "D94"]
[WhiteElo "2605"]
[BlackElo "2422"]
[Annotator "ChessBase"]
[PlyCount "75"]
[EventDate "2019.11.23"]
[EventType "tourn"]
[EventCountry "TUR"]
[SourceTitle "playchess.com"]
[Source "ChessBase"]
[SourceQuality "1"]
[TimeControl "40/5400+30:1800+30"]

1. Nf3 {[%emt 0:00:30]} Nf6 {[%emt 0:00:30]} 2. c4 {[%emt 0:00:30]} c6 {[%emt 0:00:00]} 3. Nc3 {[%emt 0:00:00]} d5 {[%emt 0:00:00]} 4. e3 {[%emt 0:00:00]} g6 {[%emt 0:00:30]} 5. d4 {[%emt 0:00:00]} Bg7 {[%emt 0:00:30]} 6. Be2 {[%emt 0:00:00]} O-O {[%emt 0:00:30]} 7. O-O {[%emt 0:00:00]} a6 {[%emt 0:00:30]} 8. a4 {[%emt 0:02:00]} a5 {[%emt 0:00:30]} 9. cxd5 {[%emt 0:03:30]} cxd5 {[%emt 0:00:00]} 10. Ne5 {[%emt 0:00:30]} Ne4 {[%emt 0:12:00]} 11. Nxe4 {[%emt 0:03:30]} Bxe5 {[%emt 0:00:30]} 12. dxe5 {[%emt 0:06:30]} dxe4 {[%emt 0:00:30]} 13. Bd2 {[%emt 0:10:30]} Nc6 {[%emt 0:10:30]} 14. Bc3 {[%emt 0:02:30]} Qxd1 {[%emt 0:03:30]} 15. Rfxd1 {[%emt 0:00:30]} Be6 {[%emt 0:00:30]} 16. Bb5 {[%emt 0:03:30]} Rfc8 {[%emt 0:09:30]} 17. f3 {[%emt 0:08:30]} exf3 {[%emt 0:04:30]} 18. gxf3 {[%emt 0:00:00]} Rc7 {[%emt 0:07:30]} 19. Kf2 {[%emt 0:02:00]} Rac8 {[%emt 0:07:30]} 20. Rd2 {[%emt 0:05:30]} b6 {[%emt 0:06:30]} 21. e4 {[%emt 0:05:30]} Bb3 {[%emt 0:06:30]} 22. h4 {[%emt 0:04:30]} Nb4 {[%emt 0:03:30]} 23. h5 {[%emt 0:02:30]} Bc4 {[%emt 0:04:30]} 24. hxg6 {[%emt 0:10:30]} fxg6 {[%emt 0:01:44]} 25. Bd7 {[%emt 0:00:30]} Nd3+ {[%emt 0:00:29]} 26. Rxd3 {[%emt 0:02:30]} Bxd3 {[%emt 0:00:17]} 27. Be6+ {[%emt 0:00:30]} Kf8 {[%emt 0:04:16]} 28. Bxc8 {[%emt 0:04:30]} Rxc8 {[%emt 0:01:42]} 29. Rh1 {[%emt 0:00:30]} Kg8 {[%emt 0:01:51]} 30. Rd1 {[%emt 0:02:30]} Bc2 {[%emt 0:01:18]} 31. Rd7 {[%emt 0:00:30]} Kf7 {[%emt 0:00:26]} 32. Rb7 {[%emt 0:00:30]} Rc6 {[%emt 0:00:27]} 33. Ke3 {[%emt 0:03:41]} Bxa4 {[%emt 0:01:48]} 34. Bd4 {[%emt 0:00:02]} b5 {[%emt 0:02:50]} 35. f4 {[%emt 0:04:12]} Bc2 {[%emt 0:01:48]} 36. Rxb5 {[%emt 0:00:58]} a4 {[%emt 0:00:11]} 37. Rb7 {[%emt 0:04:09]} h5 {[%emt 0:03:26]} 38. Rb8 {[%emt 0:03:05]} 1/2-1/2

[Event "Turkish Championship 2019"]
[Site "Antalya-Kemer"]
[Date "2019.11.23"]
[Round "1.4"]
[White "Kamer, Kayra"]
[Black "Sanal, Vahap"]
[Result "0-1"]
[ECO "C50"]
[WhiteElo "2329"]
[BlackElo "2545"]
[Annotator "ChessBase"]
[PlyCount "90"]
[EventDate "2019.11.23"]
[EventType "tourn"]
[EventCountry "TUR"]
[SourceTitle "playchess.com"]
[Source "ChessBase"]
[SourceQuality "1"]
[TimeControl "40/5400+30:1800+30"]

1. e4 {[%emt 0:00:30]} e5 {[%emt 0:00:30]} 2. Nf3 {[%emt 0:00:00]} Nc6 {[%emt 0:00:00]} 3. Nc3 {[%emt 0:00:00]} Nf6 {[%emt 0:01:00]} 4. Bb5 {[%emt 0:00:30]} Bd6 {[%emt 0:00:30]} 5. d3 {[%emt 0:01:30]} a6 {[%emt 0:00:30]} 6. Bc4 {[%emt 0:00:30]} h6 {[%emt 0:00:30]} 7. a3 {[%emt 0:00:30]} Bc5 {[%emt 0:00:30]} 8. Be3 {[%emt 0:05:30]} d6 {[%emt 0:04:30]} 9. b4 {[%emt 0:08:30]} Ba7 {[%emt 0:10:30]} 10. Bxa7 {[%emt 0:01:30]} Rxa7 {[%emt 0:00:30]} 11. h3 {[%emt 0:00:30]} O-O {[%emt 0:00:30]} 12. O-O {[%emt 0:00:30]} Ra8 {[%emt 0:10:30]} 13. d4 {[%emt 0:06:30]} Re8 {[%emt 0:01:30]} 14. dxe5 {[%emt 0:05:30]} Nxe5 {[%emt 0:04:30]} 15. Nxe5 {[%emt 0:00:30]} dxe5 {[%emt 0:01:30]} 16. Qxd8 {[%emt 0:05:30]} Rxd8 {[%emt 0:00:00]} 17. f4 {[%emt 0:01:30]} Be6 {[%emt 0:05:00]} 18. Bxe6 {[%emt 0:01:30]} fxe6 {[%emt 0:00:30]} 19. fxe5 {[%emt 0:01:30]} Nd7 {[%emt 0:00:00]} 20. Rad1 {[%emt 0:04:30]} Nxe5 {[%emt 0:00:00]} 21. Ne2 {[%emt 0:00:30]} Rxd1 {[%emt 0:06:30]} 22. Rxd1 {[%emt 0:00:30]} Kf7 {[%emt 0:00:00]} 23. Kf2 {[%emt 0:08:30]} Ke7 {[%emt 0:00:00]} 24. Nd4 {[%emt 0:10:30]} Nc4 {[%emt 0:03:30]} 25. a4 {[%emt 0:02:30]} a5 {[%emt 0:12:30]} 26. bxa5 {[%emt 0:04:30]} Rxa5 {[%emt 0:00:30]} 27. Nb3 {[%emt 0:00:00]} Rxa4 {[%emt 0:07:30]} 28. Nc5 {[%emt 0:01:00]} Ra2 {[%emt 0:00:00]} 29. Rd7+ {[%emt 0:00:00]} Kf6 {[%emt 0:00:00]} 30. Rxc7 {[%emt 0:00:00]} Rxc2+ {[%emt 0:00:30]} 31. Kg3 {[%emt 0:00:00]} Rc3+ {[%emt 0:00:30]} 32. Kh4 {[%emt 0:00:00]} b5 {[%emt 0:03:30]} 33. Nd7+ {[%emt 0:14:17]} Ke7 {[%emt 0:00:30]} 34. Nb8+ {[%emt 0:00:00]} Kd6 {[%emt 0:02:30]} 35. Rxg7 {[%emt 0:00:00]} b4 {[%emt 0:01:30]} 36. Rd7+ {[%emt 0:02:56]} Kc5 {[%emt 0:00:30]} 37. Na6+ {[%emt 0:00:00]} Kc6 {[%emt 0:00:30]} 38. Rd3 {[%emt 0:00:00]} Kb5 {[%emt 0:01:30]} 39. Nxb4 {[%emt 0:05:30]} Kxb4 {[%emt 0:00:30]} 40. Rxc3 {[%emt 0:00:00]} Kxc3 {[%emt 0:00:00]} 41. Kh5 {[%emt 0:07:47]} Ne3 {[%emt 0:01:00]} 42. g4 {[%emt 0:03:30]} Kd4 {[%emt 0:01:30]} 43. Kxh6 {[%emt 0:00:30]} Kxe4 {[%emt 0:00:00]} 44. Kg5 {[%emt 0:00:30]} e5 {[%emt 0:00:00]} 45. h4 {[%emt 0:04:30]} Kd4 {[%emt 0:00:30]} 0-1

[Event "Turkish Championship 2019"]
[Site "Antalya-Kemer"]
[Date "2019.11.23"]
[Round "1.5"]
[White "Koksal, Ege"]
[Black "Yuksel, Atilla Koksal"]
[Result "1-0"]
[ECO "D47"]
[WhiteElo "2375"]
[BlackElo "2250"]
[Annotator "NA"]
[PlyCount "109"]
[EventDate "2019.11.23"]
[EventType "tourn"]
[EventCountry "TUR"]
[SourceTitle "playchess.com"]
[Source "ChessBase"]
[SourceQuality "1"]
[TimeControl "40/5400+30:1800+30"]

1. d4 {[%emt 0:00:30]} d5 {[%emt 0:01:30]} 2. c4 {[%emt 0:01:30]} e6 {[%emt 0:00:30]} 3. Nc3 {[%emt 0:00:30]} Nf6 {[%emt 0:00:30]} 4. Nf3 {[%emt 0:00:30]} c6 {[%emt 0:00:30]} 5. e3 {[%emt 0:00:00]} Nbd7 {[%emt 0:00:30]} 6. Bd3 {[%emt 0:00:00]} dxc4 {[%emt 0:01:30]} 7. Bxc4 {[%emt 0:00:00]} b5 {[%emt 0:00:00]} 8. Bd3 {[%emt 0:00:00]} Bd6 {[%emt 0:00:00]} 9. O-O {[%emt 0:03:30]} O-O {[%emt 0:01:30]} 10. Ng5 {[%emt 0:04:30]} Bb7 {[%emt 0:14:30]} 11. Qf3 {[%emt 0:14:30]} b4 {[%emt 0:18:30]} 12. Nce4 {[%emt 0:11:30]} Nxe4 {[%emt 0:03:30]} 13. Qxe4 {[%emt 0:03:30]} Nf6 {[%emt 0:00:30]} 14. Qh4 {[%emt 0:02:30]} h6 {[%emt 0:03:30]} 15. Ne4 {[%emt 0:02:30]} Nxe4 {[%emt 0:16:30]} 16. Qxe4 {[%emt 0:00:30]} g6 {[%emt 0:00:00]} 17. b3 {[%emt 0:03:30]} Qe7 {[%emt 0:03:00]} 18. Qg4 {[%emt 0:04:30]} h5 {[%emt 0:01:30]} 19. Qe2 {[%emt 0:00:00]} c5 {[%emt 0:00:00]} 20. dxc5 {[%emt 0:00:00]} Be5 {[%emt 0:04:00]} 21. Bb2 {[%emt 0:00:30]} Bxb2 {[%emt 0:01:30]} 22. Qxb2 {[%emt 0:00:30]} Qxc5 {[%emt 0:00:00]} 23. Rad1 {[%emt 0:00:30]} e5 {[%emt 0:02:00]} 24. Bc4 {[%emt 0:06:30]} Rad8 {[%emt 0:02:30]} 25. Qc2 {[%emt 0:01:30]} Kg7 {[%emt 0:00:30]} 26. Rd2 {[%emt 0:02:30]} Qe7 {[%emt 0:15:44]} 27. Rfd1 {[%emt 0:04:30]} Qg5 {[%emt 0:01:52]} 28. Bf1 {[%emt 0:02:30]} Rc8 {[%emt 0:02:21]} 29. Qb2 {[%emt 0:00:00]} Rc3 {[%emt 0:01:39]} 30. Rd7 {[%emt 0:01:00]} Bf3 {[%emt 0:00:55]} 31. Re1 {[%emt 0:03:30]} Rfc8 {[%emt 0:00:47]} 32. Qd2 {[%emt 0:04:30]} Rc2 {[%emt 0:00:54]} 33. Qxb4 {[%emt 0:01:30]} Qf5 {[%emt 0:03:05]} 34. Rd2 {[%emt 0:03:30]} Rc1 {[%emt 0:00:27]} 35. Rb2 {[%emt 0:02:47]} Be4 {[%emt 0:00:40]} 36. f3 {[%emt 0:02:09]} Bd3 {[%emt 0:00:30]} 37. Qd2 {[%emt 0:04:28]} Rxe1 {[%emt 0:00:30]} 38. Qxe1 {[%emt 0:00:03]} Bxf1 {[%emt 0:00:09]} 39. Qxf1 {[%emt 0:00:21]} Rc2 {[%emt 0:00:25]} 40. Qb1 {[%emt 0:00:00]} Rxb2 {[%emt 0:00:00]} 41. Qxb2 {[%emt 0:03:42]} Kh7 {[%emt 0:05:02]} 42. b4 {[%emt 0:01:30]} h4 {[%emt 0:04:30]} 43. h3 {[%emt 0:00:30]} Qg5 {[%emt 0:01:30]} 44. Qf2 {[%emt 0:00:30]} Qe7 {[%emt 0:00:30]} 45. a3 {[%emt 0:00:30]} g5 {[%emt 0:00:30]} 46. Qc2+ {[%emt 0:00:00]} Kg7 {[%emt 0:01:30]} 47. Qc5 {[%emt 0:21:05]} Qe6 {[%emt 0:02:25]} 48. Qxa7 {[%emt 0:00:51]} Qb3 {[%emt 0:00:38]} 49. Qc5 {[%emt 0:02:51]} f6 {[%emt 0:03:21]} 50. b5 {[%emt 0:01:13]} Qd1+ {[%emt 0:00:05]} 51. Kh2 {[%emt 0:00:00]} Qe1 {[%emt 0:01:36]} 52. e4 {[%emt 0:00:34]} Qg3+ {[%emt 0:01:33]} 53. Kh1 {[%emt 0:00:37]} Qe1+ {[%emt 0:00:30]} 54. Qg1 {[%emt 0:00:00]} Qa5 {[%emt 0:00:01]} 55. Qb1 {[%emt 0:00:38]} 1-0

[Event "Turkish Championship 2019"]
[Site "Antalya-Kemer"]
[Date "2019.11.24"]
[Round "2.1"]
[White "Sanal, Vahap"]
[Black "Koksal, Ege"]
[Result "1-0"]
[ECO "C43"]
[WhiteElo "2545"]
[BlackElo "2375"]
[Annotator "ChessBase"]
[PlyCount "79"]
[EventDate "2019.11.23"]
[EventType "tourn"]
[EventCountry "TUR"]
[SourceTitle "playchess.com"]
[Source "ChessBase"]
[SourceQuality "1"]
[TimeControl "40/5400+30:1800+30"]

1. e4 {[%emt 0:00:30]} e5 {[%emt 0:00:30]} 2. Nf3 {[%emt 0:00:30]} Nf6 {[%emt 0:02:30]} 3. d4 {[%emt 0:00:30]} Nxe4 {[%emt 0:03:30]} 4. Bd3 {[%emt 0:00:30]} d5 {[%emt 0:01:30]} 5. Nxe5 {[%emt 0:00:30]} Be7 {[%emt 0:10:30]} 6. O-O {[%emt 0:01:30]} O-O {[%emt 0:00:30]} 7. Nc3 {[%emt 0:01:30]} Nxc3 {[%emt 0:03:30]} 8. bxc3 {[%emt 0:00:00]} Nd7 {[%emt 0:03:30]} 9. Nxd7 {[%emt 0:00:00]} Qxd7 {[%emt 0:02:30]} 10. Qh5 {[%emt 0:01:30]} g6 {[%emt 0:02:30]} 11. Qf3 {[%emt 0:04:30]} b6 {[%emt 0:04:30]} 12. Bh6 {[%emt 0:31:30]} Re8 {[%emt 0:04:30]} 13. Rfe1 {[%emt 0:01:30]} Bb7 {[%emt 0:00:30]} 14. g3 {[%emt 0:01:30]} Bf8 {[%emt 0:09:30]} 15. Bxf8 {[%emt 0:01:30]} Rxf8 {[%emt 0:00:30]} 16. h4 {[%emt 0:01:30]} Rae8 {[%emt 0:00:30]} 17. Qf4 {[%emt 0:00:30]} Qc6 {[%emt 0:04:30]} 18. Qd2 {[%emt 0:01:30]} h5 {[%emt 0:06:30]} 19. Rf1 {[%emt 0:07:30]} Bc8 {[%emt 0:04:30]} 20. Kg2 {[%emt 0:09:30]} Qf6 {[%emt 0:01:30]} 21. f4 {[%emt 0:02:30]} Bf5 {[%emt 0:04:30]} 22. Rae1 {[%emt 0:01:30]} Be4+ {[%emt 0:05:30]} 23. Kh2 {[%emt 0:03:30]} Qf5 {[%emt 0:03:30]} 24. Bb5 {[%emt 0:04:30]} Rc8 {[%emt 0:01:02]} 25. Rf2 {[%emt 0:02:30]} c5 {[%emt 0:02:12]} 26. Bf1 {[%emt 0:01:16]} Qf6 {[%emt 0:07:28]} 27. f5 {[%emt 0:10:28]} cxd4 {[%emt 0:01:47]} 28. c4 {[%emt 0:02:20]} Bxf5 {[%emt 0:03:02]} 29. cxd5 {[%emt 0:00:44]} Qg7 {[%emt 0:00:47]} 30. Qg5 {[%emt 0:02:24]} Rfd8 {[%emt 0:02:56]} 31. Ba6 {[%emt 0:00:52]} f6 {[%emt 0:01:12]} 32. Qf4 {[%emt 0:00:14]} Rc5 {[%emt 0:00:20]} 33. Qxd4 {[%emt 0:00:17]} Qd7 {[%emt 0:01:05]} 34. Qxf6 {[%emt 0:01:56]} Rf8 {[%emt 0:00:53]} 35. Qd4 {[%emt 0:00:20]} Kh7 {[%emt 0:01:13]} 36. d6 {[%emt 0:00:51]} Rf7 {[%emt 0:00:02]} 37. Bc4 {[%emt 0:00:35]} Rg7 {[%emt 0:00:19]} 38. Bb3 {[%emt 0:01:03]} Bg4 {[%emt 0:00:58]} 39. Rf8 {[%emt 0:00:43]} Qb5 {[%emt 0:00:50]} 40. Re7 {[%emt 0:00:00]} 1-0

[Event "Turkish Championship 2019"]
[Site "Antalya-Kemer"]
[Date "2019.11.24"]
[Round "2.2"]
[White "Ozen, Deniz"]
[Black "Kamer, Kayra"]
[Result "1/2-1/2"]
[ECO "A45"]
[WhiteElo "2422"]
[BlackElo "2329"]
[Annotator "ChessBase"]
[PlyCount "60"]
[EventDate "2019.11.23"]
[EventType "tourn"]
[EventCountry "TUR"]
[SourceTitle "playchess.com"]
[Source "ChessBase"]
[SourceQuality "1"]
[TimeControl "40/5400+30:1800+30"]

1. d4 {[%emt 0:00:30]} Nf6 {[%emt 0:00:30]} 2. Bf4 {[%emt 0:00:30]} g6 {[%emt 0:00:30]} 3. Nc3 {[%emt 0:00:00]} d5 {[%emt 0:00:00]} 4. e3 {[%emt 0:00:00]} Bg7 {[%emt 0:01:00]} 5. h4 {[%emt 0:00:30]} h5 {[%emt 0:01:30]} 6. Nf3 {[%emt 0:00:30]} O-O {[%emt 0:00:30]} 7. Be2 {[%emt 0:00:30]} c5 {[%emt 0:01:30]} 8. dxc5 {[%emt 0:03:30]} Qa5 {[%emt 0:01:30]} 9. O-O {[%emt 0:01:30]} Qxc5 {[%emt 0:02:30]} 10. Nb5 {[%emt 0:11:30]} a6 {[%emt 0:19:30]} 11. Nc7 {[%emt 0:22:30]} Ra7 {[%emt 0:00:00]} 12. Nb5 {[%emt 0:01:30]} Ra8 {[%emt 0:02:00]} 13. Qd4 {[%emt 0:00:30]} Qxd4 {[%emt 0:04:30]} 14. Nbxd4 {[%emt 0:00:00]} Ng4 {[%emt 0:00:30]} 15. Bc7 {[%emt 0:03:00]} e5 {[%emt 0:02:30]} 16. Nb3 {[%emt 0:00:30]} Bf5 {[%emt 0:00:30]} 17. c3 {[%emt 0:01:30]} Rc8 {[%emt 0:06:30]} 18. Bd6 {[%emt 0:01:30]} Nd7 {[%emt 0:11:30]} 19. Rad1 {[%emt 0:08:30]} Rc6 {[%emt 0:01:30]} 20. Ba3 {[%emt 0:03:30]} Nb6 {[%emt 0:04:30]} 21. Na5 {[%emt 0:01:30]} Rc7 {[%emt 0:00:30]} 22. Rd2 {[%emt 0:02:30]} Rd8 {[%emt 0:00:30]} 23. Rfd1 {[%emt 0:06:30]} Bh6 {[%emt 0:01:30]} 24. b3 {[%emt 0:09:30]} Nf6 {[%emt 0:05:30]} 25. Nc4 {[%emt 0:04:13]} Nxc4 {[%emt 0:07:30]} 26. Bxc4 {[%emt 0:00:06]} Rcd7 {[%emt 0:03:30]} 27. Be2 {[%emt 0:01:56]} Re8 {[%emt 0:02:00]} 28. Bb4 {[%emt 0:06:08]} Rdd8 {[%emt 0:06:47]} 29. Ng5 {[%emt 0:03:38]} Rd7 {[%emt 0:06:45]} 30. Bf3 {[%emt 0:00:11]} e4 {[%emt 0:02:50]} 1/2-1/2

[Event "Turkish Championship 2019"]
[Site "Antalya-Kemer"]
[Date "2019.11.24"]
[Round "2.4"]
[White "Yilmazyerli, Mert"]
[Black "Sevgi, Volkan"]
[Result "1-0"]
[ECO "C96"]
[WhiteElo "2396"]
[BlackElo "2325"]
[Annotator "NA"]
[PlyCount "55"]
[EventDate "2019.11.23"]
[EventType "tourn"]
[EventCountry "TUR"]
[SourceTitle "playchess.com"]
[Source "ChessBase"]
[SourceQuality "1"]
[TimeControl "40/5400+30:1800+30"]

1. e4 {[%emt 0:00:30]} e5 {[%emt 0:00:30]} 2. Nf3 {[%emt 0:00:30]} Nc6 {[%emt 0:00:00]} 3. Bb5 {[%emt 0:01:30]} a6 {[%emt 0:01:00]} 4. Ba4 {[%emt 0:00:00]} Nf6 {[%emt 0:00:30]} 5. O-O {[%emt 0:00:00]} Be7 {[%emt 0:00:30]} 6. Re1 {[%emt 0:01:30]} b5 {[%emt 0:00:00]} 7. Bb3 {[%emt 0:00:00]} O-O {[%emt 0:01:00]} 8. c3 {[%emt 0:03:00]} d6 {[%emt 0:00:30]} 9. h3 {[%emt 0:00:30]} Na5 {[%emt 0:02:30]} 10. Bc2 {[%emt 0:00:00]} c5 {[%emt 0:00:30]} 11. d4 {[%emt 0:02:00]} Nd7 {[%emt 0:07:30]} 12. Nbd2 {[%emt 0:01:30]} exd4 {[%emt 0:01:30]} 13. cxd4 {[%emt 0:03:30]} Nc6 {[%emt 0:00:30]} 14. d5 {[%emt 0:01:30]} Nce5 {[%emt 0:01:30]} 15. Nxe5 {[%emt 0:00:30]} Nxe5 {[%emt 0:00:30]} 16. f4 {[%emt 0:00:30]} Ng6 {[%emt 0:01:30]} 17. Nf3 {[%emt 0:01:30]} Bh4 {[%emt 0:06:30]} 18. Rf1 {[%emt 0:01:30]} Bg3 {[%emt 0:00:00]} 19. f5 {[%emt 0:01:30]} Ne5 {[%emt 0:01:00]} 20. Ng5 {[%emt 0:07:30]} h6 {[%emt 0:05:30]} 21. f6 {[%emt 0:07:30]} hxg5 {[%emt 0:05:30]} 22. Bxg5 {[%emt 0:00:30]} g6 {[%emt 0:00:30]} 23. Qc1 {[%emt 0:08:30]} Nc4 {[%emt 0:10:30]} 24. Bh6 {[%emt 0:02:30]} Re8 {[%emt 0:01:30]} 25. Qg5 {[%emt 0:04:30]} Be5 {[%emt 0:00:30]} 26. Bg7 {[%emt 0:01:30]} Bd4+ {[%emt 0:00:30]} 27. Kh1 {[%emt 0:02:30]} Re5 {[%emt 0:00:30]} 28. Rf5 {[%emt 0:00:00]} 1-0